Cogmind - Beta 15 @@@ ROGUE MODE // 2025.10.15 @ 12:46:18 Player: MAXX-P31 Result: Destroyed by S-10 Pest with Light Assault Rifle Performance ------------- Evolutions (0) 0 Regions Visited (4) 800 Robots Destroyed (52) 260 Value Destroyed (801) 801 Prototype IDs (0) 0 Alien Tech Used (0) 0 Bonus (-666) -666 TOTAL SCORE: 1195 Bonus ------- Follower Combat Kills 7 Friendly Fire -673 Cogmind --------- Core Integrity 0/250 Matter 190/300 Energy 250/250 System Corruption 1% Temperature Cool (0) Movement Rolling (130) Ox2 Location -9/Mines Parts ------- > --- POWER (1) -------- Ion Engine > --- PROPULSION (2) --- Compact Wheel Compact Wheel (fused) > --- UTILITY (2) ------ Large Storage Unit High-capacity Storage Unit > --- WEAPON (2) ------- Light Cannon Light Cannon > --- INVENTORY (20) --- Huge Storage Unit Medium Battery (150) Launcher Guidance Computer EM Pulse Gun Medium Laser Beam Cannon Assault Rifle Light Cannon Grenade Launcher Mini Grenade Launcher Peak State ------------ > --- POWER ------------ Ion Engine > --- PROPULSION ------- Light Treads Light Treads > --- UTILITY ---------- Large Storage Unit Seismic Detector > --- WEAPON ----------- Assault Rifle Assault Rifle > --- INVENTORY -------- Light Ion Engine Light Ion Engine Compact Wheel Compact Wheel Huge Storage Unit EM Pulse Gun Medium Laser Medium Laser Beam Cannon Grenade Launcher [Rating: 8] Favorites ----------- Power Light Ion Engine Engine Light Ion Engine Propulsion Light Treads Treads Light Treads Wheel Compact Wheel Utility Large Storage Unit Device Seismic Detector Storage Large Storage Unit Weapon Assault Rifle Energy Gun Medium Laser Ballistic Gun Assault Rifle Ballistic Cannon Light Cannon Launcher Grenade Launcher Build | -11 -10 -10 -10 -9 ------- Run | Yrd Mat Min Exi Min Slots Evolved . | . . . . . Power . | . . . . . Propulsion . | . . . . . Utility . | . . . . . Weapon . | . . . . . Parts Attached 23 | 7 4 4 5 3 Power 4 | 1 1 1 . 1 Engine 4 | 1 1 1 . 1 Core . | . . . . . Reactor . | . . . . . Propulsion 5 | 2 1 . 2 . Treads 3 | 2 1 . . . Leg . | . . . . . Wheel 2 | . . . 2 . Hover . | . . . . . Flight . | . . . . . Utility 4 | 2 1 . . 1 Device 1 | 1 . . . . Storage 3 | 1 1 . . 1 Processor . | . . . . . Hackware . | . . . . . Protection . | . . . . . Artifact . | . . . . . Weapon 10 | 2 1 3 3 1 Energy Gun 2 | . . . 2 . Energy Cannon . | . . . . . Ballistic Gun 2 | 2 . . . . Ballistic Cannon 3 | . . 2 . 1 Launcher 3 | . 1 1 1 . Special Weapon . | . . . . . Impact Weapon . | . . . . . Slashing Weapon . | . . . . . Piercing Weapon . | . . . . . Special Melee Weapon . | . . . . . Unidentified Prototypes . | . . . . . Parts Lost 8 | . . 4 4 . Power 2 | . . 1 1 . Propulsion 2 | . . . 2 . Utility 1 | . . 1 . . Weapon 3 | . . 2 1 . Highest Loss Streak 4 | . . 3 4 . To Critical Strikes 3 | . . . 3 . Average Backups 11 | 1 10 14 14 10 Power . | . 1 . 1 . Propulsion 1 | . 2 2 1 . Utility 2 | . 1 3 4 3 Weapon 6 | . 5 8 8 7 Tool/Special . | . . . . . Unused Backups 8 | . . . 3 5 Power 3 | . . . 3 . Propulsion . | . . . . . Utility 3 | . . . . 3 Weapon 2 | . . . . 2 Tool/Special . | . . . . . Average Slot Usage (%) 92 | . 100 84 82 96 Engine 13 | . 14 13 12 14 Treads 26 | . 28 28 23 . Wheel 1 | . . . 4 28 Device 7 | . 14 . . . Storage 14 | . 14 14 14 26 Ballistic Gun 13 | . 23 3 . . Ballistic Cannon 11 | . . 22 17 24 Launcher 3 | . 4 1 4 . Peak Build Rating 8 | 7 8 8 8 8 Average Rating 7 | 5 7 6 7 7 On Entrance 5 | . 7 8 7 5 Naked Turns . | . . . . . Heaviest Build 71 | 13 31 30 29 71 Greatest Support 40 | 40 40 40 40 32 Greatest Overweight (x) 2 | . . . 1 2 Average Overweight (x) . | . . . . 1 Largest Inventory Capacity 20 | 8 15 15 15 20 Average Capacity 14 | 7 14 15 15 19 Most Carried 15 | 3 15 15 15 12 Average Carried 11 | 1 10 14 14 10 Final Capacity 20 | 8 15 15 15 20 Final Carried 15 | 3 15 15 13 10 Class Distribution -------------------- 100% | Mutant Dominant Class ---------------- Mutant | -10/Materials Mutant | -10/Mines Mutant | -10/Exiles Mutant | -9/Mines Resources | -11 -10 -10 -10 -9 ----------- Run | Yrd Mat Min Exi Min Matter Collected 1099 | 305 440 264 . 90 Remotely . | . . . . . Salvage Created 1220 | 124 705 299 66 26 Parts 93 | 12 54 18 4 5 Haulers Intercepted 2 | . 2 . . . Recyclers Shooed 2 | . 1 1 . . Parts Field Recycled . | . . . . . Retrieved Matter . | . . . . . Parts Self-Destructed . | . . . . . Prevented . | . . . . . Kills | -11 -10 -10 -10 -9 ------- Run | Yrd Mat Min Exi Min Combat Hostiles Destroyed 34 | . 19 10 3 2 Guns 10 | . 6 4 . . Cannons 2 | . . . . 2 AOE 22 | . 13 6 3 . Classes Destroyed 10 | 3 5 . 2 . Worker 6 | 1 4 1 . . Tunneler 4 | 2 2 . . . Hauler 2 | . 2 . . . Recycler 5 | 1 2 2 . . Watcher 2 | . 2 . . . Swarmer 20 | . 12 6 . 2 Grunt 9 | . 4 4 1 . Subdweller 3 | . 3 . . . Zionite 1 | . . . 1 . Assembled 7 | . . . 7 . Best Kill Streak 5 | 1 5 3 4 2 Combat Bots Only 4 | . 4 3 3 2 Max Kills in Single Turn 4 | 1 3 2 4 1 Gunslinging . | . . . . . Exploded 3 | . 3 2 2 . Melee . | . . . . . Uniques/NPCs Destroyed 1 | . . . 1 . EX-HEX (-10/Exiles) Combat | -11 -10 -10 -10 -9 -------- Run | Yrd Mat Min Exi Min Hostile Shots Fired 149 | . 47 48 29 25 Missed 37 | . 13 11 7 6 Hits 112 | . 34 37 22 19 Projectile 112 | . 34 37 22 19 Critical Strikes 9 | . 1 . 7 1 Damage Taken 1350 | . 418 382 373 177 Core 257 | . 60 102 70 25 Absorbed by Shields . | . . . . . Core Remaining (%) 100 | 100 . . . . Volleys Fired 103 | 8 57 28 5 5 Largest 2 | 2 2 2 2 2 Hottest 100 | 40 40 60 100 60 Shots Fired 180 | 16 101 43 10 10 Gun 128 | 16 88 20 4 . Cannon 22 | . . 12 . 10 Launcher 30 | . 13 11 6 . Special . | . . . . . Kinetic 146 | 16 88 32 . 10 Thermal 4 | . . . 4 . Explosive 30 | . 13 11 6 . Electromagnetic . | . . . . . Robot Hit Streak 10 | 3 7 10 1 2 Robot Miss Streak 5 | 4 4 5 3 3 Penetration Max . | . . . . . Secondary Targets 4 | . 2 2 . . Max Gunslinging Chain 1 | . 1 1 . . Shots Hit Robots 91 | 7 56 23 2 3 Core Hits 85 | 5 43 18 17 2 Critical Kills . | . . . . . Critical Parts Destroyed . | . . . . . Critical Strikes . | . . . . . Melee Attacks . | . . . . . Impact . | . . . . . Slashing . | . . . . . Piercing . | . . . . . Sneak Attacks . | . . . . . Combat Hostiles . | . . . . . Follow-up Attacks . | . . . . . Damage Inflicted 3247 | 95 1582 935 586 49 Guns 849 | 86 652 110 1 . Cannons 150 | . . 101 . 49 Explosions 2222 | . 922 715 585 . Melee . | . . . . . Ramming 26 | 9 8 9 . . Kinetic 998 | 86 652 211 . 49 Thermal 1 | . . . 1 . Explosive 2222 | . 922 715 585 . Electromagnetic . | . . . . . Impact . | . . . . . Slashing . | . . . . . Piercing . | . . . . . Highest Corruption 1 | . 1 1 1 1 Average Corruption 1 | . 1 1 1 1 Corruption Purged . | . . . . . Corruption Blocked . | . . . . . Effects 11 | . 2 7 1 1 Message Errors 4 | . 1 3 . . Matter Fused 2 | . . 1 1 . Heat Flow Errors 1 | . . 1 . . Energy Discharges 1 | . 1 . . . Parts Fused 1 | . . . . 1 Data Loss (minor) 2 | . . 2 . . Overload Shots . | . . . . . Overflow Damage 48 | . 34 . 14 . Projectiles . | . . . . . Explosions 48 | . 34 . 14 . Melee . | . . . . . Knockbacks 1 | . . 1 . . Impact . | . . . . . Kinetic 1 | . . 1 . . Secondary . | . . . . . Self-Inflicted Damage 92 | . 52 . 40 . Shots 3 | . 2 . 1 . Rammed 7 | 4 1 2 . . Targets Rammed 8 | 5 1 2 . . Kicked . | . . . . . Crushed 1 | 1 . . . . Highest Temperature 175 | . 10 175 78 . Average Temperature 46 | . 5 57 39 . Received Heat Transfer 225 | . 72 126 . 27 Siege Activations . | . . . . . Martial Activations . | . . . . . Shielding Activations . | . . . . . Robots Disrupted . | . . . . . Combat Hostiles . | . . . . . Robots Corrupted . | . . . . . Combat Hostiles . | . . . . . Parts Fried . | . . . . . Impact Corruptions . | . . . . . Robots Melted . | . . . . . Combat Hostiles . | . . . . . Parts Melted . | . . . . . Heat Transferred 9 | . . . 9 . Parts Sabotaged . | . . . . . Parts Stolen . | . . . . . Parts Stripped . | . . . . . Power Chain Reactions . | . . . . . Alert | -11 -10 -10 -10 -9 ------- Run | Yrd Mat Min Exi Min Maximum Alert Level 1 | . 1 1 . . Low Security (%) 78 | 100 64 91 . 100 Level 1 21 | . 35 8 . . Level 2 . | . . . . . Level 3 . | . . . . . Level 4 . | . . . . . Level 5 . | . . . . . High Security . | . . . . . Max Security . | . . . . . Peak Influence 303 | 5 303 237 . 55 Initial 99 | . 3 99 . . Average 97 | 1 119 87 . 17 Influence Increases 1110 | 20 685 318 . 87 Destroy 0b10 Robot/C 580 | . 320 200 . 60 Destroy 0b10 Robot/NC 95 | 20 60 15 . . Destroy Leader 128 | . 78 40 . 10 Allied During Kill 2 | . . . . 2 Successful Hack 16 | . 16 . . . Select Force Hacks 60 | . 60 . . . Disable Machine 90 | . 60 30 . . Destroy Structure 109 | . 76 33 . . Lose Combat Pursuer 30 | . 15 . . 15 Influence Decreases 1085 | 15 435 573 . 62 Entered New Map 158 | . 2 156 . . Time Decay 875 | 15 433 377 . 50 Lost Part 40 | . . 40 . . Lost Ally 12 | . . . . 12 Squads Dispatched 3 | . 3 . . . Investigation 2 | . 2 . . . Extermination . | . . . . . Reinforcement 1 | . 1 . . . Assault . | . . . . . Garrison . | . . . . . Intercept . | . . . . . Searches Triggered . | . . . . . Construction Impeded . | . . . . . Haulers Reinforced . | . . . . . Active Scanning Responses . | . . . . . Cargo Convoy Interrupts . | . . . . . Stealth | -11 -10 -10 -10 -9 --------- Run | Yrd Mat Min Exi Min Distress Signals 4 | . 4 . . . Communications Jammed . | . . . . . Distress Signals . | . . . . . Times Spotted 63 | . 39 10 5 9 Peak Tracking Total 7 | . 6 3 7 6 Tactical Retreats 2 | . 1 . . 1 Traps | -11 -10 -10 -10 -9 ------- Run | Yrd Mat Min Exi Min Traps Triggered 1 | . 1 . . . Indirectly . | . . . . . Trap Hack Attempts . | . . . . . Triggered . | . . . . . Disarmed . | . . . . . Reprogrammed . | . . . . . Reused . | . . . . . Traps Extracted . | . . . . . Installed . | . . . . . Triggered . | . . . . . Machines | -11 -10 -10 -10 -9 ---------- Run | Yrd Mat Min Exi Min Machines Disabled 10 | . 4 2 4 . Max in Single Turn 3 | . 2 2 3 . Machines Repaired . | . . . . . Machines Dismantled . | . . . . . Machines Sabotaged . | . . . . . Overloaded Fab Kills . | . . . . . Hacking | -11 -10 -10 -10 -9 --------- Run | Yrd Mat Min Exi Min Machines Accessed 7 | . 7 . . . Terminals 5 | . 5 . . . Fabricators . | . . . . . Repair Stations . | . . . . . Recycling Units 2 | . 2 . . . Scanalyzers . | . . . . . Garrison Access . | . . . . . Total Hacks 16 | . 16 . . . Successful 12 | . 12 . . . Failed 4 | . 4 . . . Catastrophic . | . . . . . Database Lockouts . | . . . . . Manual 14 | . 14 . . . Terminals 14 | . 14 . . . Fabricators . | . . . . . Repair Stations . | . . . . . Recycling Units 2 | . 2 . . . Scanalyzers . | . . . . . Garrison Access . | . . . . . Terminal Hacks 2 | . 2 . . . Hauler Manifests 1 | . 1 . . . Zone Layout 1 | . 1 . . . Fabricator Hacks . | . . . . . Repair Station Hacks . | . . . . . Recycling Unit Hacks . | . . . . . Scanalyzer . | . . . . . Garrison Access Hacks . | . . . . . Unauthorized Hacks 10 | . 10 . . . Terminals 8 | . 8 . . . Botnet 3 | . 3 . . . Skim 5 | . 5 . . . Fabricators . | . . . . . Repair Stations . | . . . . . Recycling Units 2 | . 2 . . . Tunnel 2 | . 2 . . . Scanalyzers . | . . . . . Garrison Access . | . . . . . Data Cores Recovered . | . . . . . Used . | . . . . . Hacking Detections 4 | . 4 . . . Full Trace Events . | . . . . . Feedback Events . | . . . . . Feedback Blocked . | . . . . . Robot Schematics Acquired . | . . . . . Robots Built . | . . . . . Authchips . | . . . . . Time . | . . . . . Total Robot Build Rating . | . . . . . Part Schematics Acquired . | . . . . . Parts Built . | . . . . . Authchips . | . . . . . Time . | . . . . . Total Part Build Rating . | . . . . . Parts Repaired . | . . . . . Time . | . . . . . Parts Recycled . | . . . . . Recycled Matter . | . . . . . Retrieved Matter . | . . . . . Retrieved Components . | . . . . . Parts Scanalyzed . | . . . . . Part Schematics Acquired . | . . . . . Parts Damaged . | . . . . . Bothacking | -11 -10 -10 -10 -9 ------------ Run | Yrd Mat Min Exi Min Used RIF Installer . | . . . . . Robots Hacked . | . . . . . Non-combat . | . . . . . Combat . | . . . . . Robot Hacks Applied . | . . . . . Relay Couplers Released . | . . . . . Fabnet Peak Effective % . | . . . . . Robots Rewired . | . . . . . Allies Hacked . | . . . . . Hacks Repelled . | . . . . . Allies | -11 -10 -10 -10 -9 -------- Run | Yrd Mat Min Exi Min Total Allies 6 | . . 4 . 2 Largest Group 3 | . . 3 3 2 Highest-Rated Group 40 | . . 40 40 39 Highest-Rated Ally 31 | . . 31 16 31 Total Orders . | . . . . . Ally Attacks 19 | . . . 11 8 Total Damage 150 | . . . 65 85 Kills 2 | . . . 1 1 Allies Corrupted . | . . . . . Allies Melted . | . . . . . Intel | -11 -10 -10 -10 -9 ------- Run | Yrd Mat Min Exi Min Active Infowar (turns) 1819 | 104 1709 6 . . Seismic 1819 | 104 1709 6 . . Robot Analysis Total . | . . . . . Derelict Logs Recovered 1 | . . 1 . . Drone Launches . | . . . . . Drone Recoveries . | . . . . . Exploration | -11 -10 -10 -10 -9 ------------- Run | Yrd Mat Min Exi Min Turns Passed 3544 | 138 1709 1286 259 152 Spaces Moved 1903 | 60 918 713 150 62 Core 4 | 4 . . . . Treads 1800 | 56 918 713 113 . Legs . | . . . . . Wheels 99 | . . . 37 62 Hover . | . . . . . Flight . | . . . . . Fastest Speed 50 | 50 160 160 100 100 Average Speed 157 | 152 160 160 145 128 Slowest Speed 160 | 160 160 160 160 130 Overloaded Moves . | . . . . . Propulsion Burnouts . | . . . . . Robots Hopped . | . . . . . Potential Cave-ins . | . . . . . Cave-ins Triggered . | . . . . . Exploration Rate (%) 48 | 5 98 99 22 16 Regions Visited 4 Branch Regions 3 Pre-discovered Areas 3 | . 3 . . . Known Exits Taken 1 | . . . 1 . Unknown Exits Taken 3 | 1 1 1 . . Scrap Searched 1 | . . 1 . . Spaces Dug . | . . . . . Terrain Destroyed 136 | . 81 46 9 . Melee . | . . . . . Projectile . | . . . . . AOE 136 | . 81 46 9 . Terrain Rammed . | . . . . . Walls Destroyed . | . . . . . Machines Disabled . | . . . . . Actions | -11 -10 -10 -10 -9 --------- Run | Yrd Mat Min Exi Min Total 2257 | 84 1056 813 180 124 Wait 187 | 2 61 60 11 53 Move 1899 | 59 917 712 149 62 Hop . | . . . . . Pick Up 22 | 3 12 3 4 . Fast Attach 7 | 7 . . . . Attach 8 | . . 3 2 3 Detach . | . . . . . Swap 14 | . 5 3 5 1 Drop 7 | . 3 . 4 . Fire 103 | 8 57 28 5 5 Melee . | . . . . . Ram . | . . . . . Kick . | . . . . . Crush 8 | 5 1 2 . . Escape Stasis . | . . . . . Rewire 2 | . . 2 . . Trap . | . . . . . Miscellaneous . | . . . . . Route ------- -11/Scrapyard -10/Materials (discovered 6 exits: *Mat x3 / [*Min x2] / Sub) -10/Mines (discovered 4 exits: *Mat x2 / [*Exi] / *Sub) -10/Exiles (discovered 2 exits: *Min x2) -9/Mines (discovered 1 exit: Mat) History --------- Turn | Location | Event 10 | -11/Scrapyard | Discovered new exit (range 14) 139 | -11/Scrapyard | Entered Materials 317 | -10/Materials | Discovered new exit (range 9) 317 | -10/Materials | Discovered new exit (range 15) 333 | -10/Materials | Build established: Mutant 562 | -10/Materials | Discovered new exit (range 6) 831 | -10/Materials | Discovered new exit (range 9) 1022 | -10/Materials | Discovered new exit (range 16) 1139 | -10/Materials | Derelicts attacked the area 1274 | -10/Materials | Learned 2 Storage zone layouts 1460 | -10/Materials | Identified exit to Subcaves 1501 | -10/Materials | Loaded intel: 2 recycling unit locations 1577 | -10/Materials | Learned 4 Recycling zone layouts 1628 | -10/Materials | Loaded intel: 16 trap records 1848 | -10/Materials | Entered Mines 1849 | -10/Mines | Identified exit to Materials 1887 | -10/Mines | Learned Materials garrison access intel 1888 | -10/Mines | Met a Derelict bent on vengeance 1925 | -10/Mines | Assembled infested the area 1961 | -10/Mines | Discovered exit to Subcaves (range 9) 2015 | -10/Mines | Core integrity fell below 50% 2039 | -10/Mines | Lost 3 parts (1p2w) 2583 | -10/Mines | Discovered new exit (range 5) 2685 | -10/Mines | Received a Mining Laser from a helpful Derelict 2963 | -10/Mines | Assisted by bots powering up and referring to "LRC-V3" 3134 | -10/Mines | Entered Exiles 3134 | -10/Exiles | Accompanied by 3 allies 3135 | -10/Exiles | Identified exit to Mines 3244 | -10/Exiles | Met 8R-AWN 3267 | -10/Exiles | Met EX-HEX 3325 | -10/Exiles | Attacked by the Exiles 3333 | -10/Exiles | Allies destroyed EX-HEX 3353 | -10/Exiles | Murdered 5 allies 3368 | -10/Exiles | Core integrity fell below 20% 3393 | -10/Exiles | Entered Mines 3394 | -9/Mines | Identified exit to Materials 3410 | -9/Mines | Lost 4 parts (1p2n1w) 3545 | -9/Mines | Destroyed by S-10 Pest with Light Assault Rifle Last Messages --------------- 03376_ Lgt. Ion Engine destroyed. 03379_ Penetrated by HV Slug. 03379_ Critical hit (Destroy). 03379_ Med. Laser destroyed. 03379_ HV Slug penetrates Wall. LOCATION=MINES GOAL=ESCAPE 03394_ A pair of derelicts emerge from the shadows: "We're, um, lost. You wouldn't happen to know the way out of here, would you?" 03394_ System corrupted: Com. Wheel fused. Loading 1 Materials entrance... 03471_ S-10 Pest destroyed. 03482_ Acquired 10 matter. 03491_ S-10 Pest destroyed. 03493_ R-06 Scavenger collects Imp. Heat Sink. 03495_ Acquired 16 matter. 03500_ Acquired 2 matter. 03505_ Acquired 51 matter. 03507_ Acquired 11 matter. Map ----- +----------------------------------------------------+ | ??????# [ = * ##???????????? | | ???????####### #####* #????????????? | | ?????????????# #???# % #???????????? | | ??????######## #???# #???????????? | | ?????# #???## ##???????????? | | ?????# ####### #????#####????????????? | | ?????????????# #?????????????????????? | | ?????????????# #?????????????????????? | | ?????????????# #?????????????????????? | | ?????????????# #?????????????????????? | | ?????????????# #?????????????????????? | | ?????????????# #?????????????????????? | | ?????????????# #?????????????????????? | | ?????????????# #?????????????????????? | | ???????????### ###???????????????????? | | ??????????## ########????????????? | | ??????????# #????????????? | | ??????????# ##### #????????????? | | ??????????## ##???# #????????????? | | ???????????## #????# #????????????? | | ????????????#### #????# #????????????? | | ??????????????## ##### ###??????????? | | ??????????????# #??????????? | | ?????????????# #??????????? | | ?????????????# ##### #??????????? | | ????????????# ##????#s@#??????????? | | ????????????? ##?????#ss#??????????? | | ??????????? #??????# ??????????? | | ?????????? ?? ?????? """??????????? | | ?????????????# ????? ## """ ?????????? | | ?????????????#?????#??# """ ?????????? | | ??????????????????????# """ "????????? | | ??????????????????????# ????????? | | ??????????????????????##???###???????? | | ?????????????????????????????????????? | | ?????????????????????????????????????? | | ?????????????????????????????????????? | | ?????????????????????????????????????? | | ?????????????????????????????????????? | | ?????????????????????????????????????? | | ?????????????????????????????????????? | | ?????????????????????????????????????? | | ?????????????????????????????????????? | | ?????????????????????????????????????? | | ?????????????????????????????????????? | | ?????????????????????????????????????? | | | | | | | | | +----------------------------------------------------+ Best States ------------- Heat Dissipation 25 Energy Generation 10 Energy Capacity 250 Matter Stores 300 Matter Capacity 300 Sight Range 16 Terrain Scan Density 10 Evasion (%) 40 Recoil Reduction 2 Item Schematics ----------------- None Robot Schematics ------------------ None Fabricated ------------ Nothing Repaired ---------- Nothing Alien Tech Used ----------------- None Achievements -------------- None Challenges ------------ None Game ------ Seed DeliveryElectrostormSaw Manual? 0 Play Time 00:19:40 Cumulative 245.1 hours Start 2025.10.15 @ 12:27:40 End 2025.10.15 @ 12:46:18 Sessions 1 Manual Loads 0 Difficulty Rogue Special Mode None Game No. 129 Rogue 129 Adventurer 0 Explorer 0 Win Type - Total 4 Types 4/0/0/0/0/0/0/0/0/0 Lore% 52 Gallery% 63 Achievement% 57 Wizard Run 0 Options --------- Layout 1 ASCII 0 Keyboard 0 Movement Numpad Keybinds 0 Fullscreen 1 Font 24/Smallcaps Map View 50x35 Zoom Use 0% Tactical HUD 1 Map Filters NONE Filters NONE Steam 1 RUN: b4ff4718-bf6c-457e-8a0a-3389eef7632d